Cogmind - Beta 10.2 @@@ ROGUE MODE // 2020.12.14 @ 13:41:13 Player: CrossedViper Result: Destroyed by AD-0RF with AD-0RF's Magmablaster Performance ------------- Evolutions (1) 500 Regions Visited (6) 1200 Robots Destroyed (63) 315 Value Destroyed (1397) 1397 Prototype IDs (29) 580 Alien Tech Used (0) 0 Bonus (110) 110 TOTAL SCORE: 4102 Bonus ------- Follower Combat Kills 74 Aligned with FarCom 300 Friendly Fire -264 Cogmind --------- Core Integrity 0/400 Matter 3/300 Energy 277/280 System Corruption 0% Temperature Cool (442) Movement Walking (150) Ox1 Location -8/Mines Parts ------- > --- POWER (1) -------- Heavy Ion Engine > --- PROPULSION (2) --- Advanced Myomer Leg > --- UTILITY (4) ------ Large Storage Unit Large Storage Unit > --- WEAPON (2) ------- Improved Assault Rifle > --- INVENTORY (16) --- Heavy Ion Engine Reinforced Fission Core Gravity Neutralizing Apparatus Particle Charger AS-neutralizer No. 17b Heavy EM Pulse Gun Heavy Assault Rifle Heavy Assault Rifle Improved Assault Rifle Rocket Launcher Improved Grenade Launcher Improved Grenade Launcher Mining Claw Mining Claw Peak State ------------ > --- POWER ------------ Heavy Ion Engine > --- PROPULSION ------- Advanced Myomer Leg > --- UTILITY ---------- Large Storage Unit Large Storage Unit Target Analyzer > --- WEAPON ----------- 8R-AWN's Boregun 8R-AWN's Boregun > --- INVENTORY -------- Heavy Ion Engine Reinforced Fission Core Gravity Neutralizing Apparatus Particle Charger AS-neutralizer No. 17b Heavy EM Pulse Gun Heavy Assault Rifle Heavy Assault Rifle Improved Assault Rifle Improved Assault Rifle Rocket Launcher Improved Grenade Launcher Improved Grenade Launcher Mining Claw Mining Claw [Rating: 40] Favorites ----------- Power Heavy Ion Engine Engine Heavy Ion Engine Power Core Light Nuclear Core Propulsion Aluminum Leg Treads Improved Treads Leg Aluminum Leg Utility Large Storage Unit Device Improved Heat Sink Storage Large Storage Unit Processor Target Analyzer Protection Medium Armor Plating Weapon Heavy EM Pulse Gun Energy Gun Heavy EM Pulse Gun Ballistic Gun Improved Assault Rifle Launcher Rocket Launcher Slashing Weapon Mining Claw Build | -11 -10 -10 -9 -9 -9 -8 ------- Run | Scr Mat Min Mat Min Exi Min Slots Evolved 2 | . . . 2 . . . Power . | . . . . . . . Propulsion . | . . . . . . . Utility 2 | . . . 2 . . . Weapon . | . . . . . . . Parts Attached 63 | . 13 7 14 4 15 10 Power 5 | . 2 . 1 . 2 . Engine 4 | . 1 . 1 . 2 . Core 1 | . 1 . . . . . Reactor . | . . . . . . . Propulsion 10 | . 2 2 4 . 2 . Treads 4 | . . . 4 . . . Leg 6 | . 2 2 . . 2 . Wheel . | . . . . . . . Hover . | . . . . . . . Flight . | . . . . . . . Utility 13 | . 1 1 4 . 6 1 Device 6 | . . 1 1 . 4 . Storage 3 | . 1 . 2 . . . Processor 1 | . . . . . . 1 Hackware . | . . . . . . . Protection 3 | . . . 1 . 2 . Artifact . | . . . . . . . Weapon 35 | . 8 4 5 4 5 9 Energy Gun 8 | . 4 2 2 . . . Energy Cannon . | . . . . . . . Ballistic Gun 14 | . 1 1 3 2 . 7 Ballistic Cannon . | . . . . . . . Launcher 8 | . 3 1 . . 2 2 Special Weapon . | . . . . . . . Impact Weapon . | . . . . . . . Slashing Weapon 5 | . . . . 2 3 . Piercing Weapon . | . . . . . . . Special Melee Weapon . | . . . . . . . Unidentified Prototypes 6 | . 1 . 1 . 3 1 Parts Lost 15 | . . . 2 . 9 4 Power 2 | . . . . . 2 . Propulsion 3 | . . . . . 3 . Utility 6 | . . . . . 4 2 Weapon 4 | . . . 2 . . 2 Highest Loss Streak 9 | . . . 2 . 9 4 Average Slot Usage (%) 95 | . 97 99 93 100 90 75 Engine 11 | . 12 14 11 11 11 11 Treads 8 | . . . 15 22 13 . Leg 15 | . 28 28 6 . 3 11 Device 10 | . . 13 19 11 10 7 Storage 20 | . 25 14 18 22 22 22 Protection 2 | . . . . 11 7 . Energy Gun 10 | . 13 18 11 . . . Ballistic Gun 10 | . 14 8 9 18 6 18 Slashing Weapon 3 | . . . . 3 15 2 Naked Turns . | . . . . . . . Heaviest Build 64 | 11 50 50 64 54 63 48 Greatest Support 46 | 20 20 20 46 46 46 30 Greatest Overweight (x) 14 | . 2 2 2 1 14 1 Average Overweight (x) 1 | . 1 2 1 1 1 1 Largest Inventory Capacity 18 | . 14 14 18 16 16 16 Average Capacity 14 | . 12 12 14 16 16 16 Most Carried 16 | . 14 12 16 16 16 16 Average Carried 12 | . 8 11 13 16 14 14 Final Capacity 16 | 6 14 12 16 16 16 16 Final Carried 16 | 6 12 12 16 16 15 14 Class Distribution -------------------- 97% | Mutant Dominant Class ---------------- Mutant | -10/Materials Mutant | -10/Mines Mutant | -9/Materials Mutant | -9/Mines Mutant | -9/Exiles Mutant | -8/Mines Resources | -11 -10 -10 -9 -9 -9 -8 ----------- Run | Scr Mat Min Mat Min Exi Min Matter Collected 1129 | 200 301 91 312 67 125 33 Remotely . | . . . . . . . Salvage Created 1989 | . 674 113 974 41 130 57 Parts 149 | . 53 15 63 4 3 11 Haulers Intercepted 5 | . 1 . 4 . . . Recyclers Shooed . | . . . . . . . Parts Field Recycled . | . . . . . . . Retrieved Matter . | . . . . . . . Parts Self-Destructed . | . . . . . . . Prevented . | . . . . . . . Kills | -11 -10 -10 -9 -9 -9 -8 ------- Run | Scr Mat Min Mat Min Exi Min Combat Hostiles Destroyed 52 | . 18 6 12 1 8 7 Melee 1 | . . . . . 1 . Guns 23 | . 8 2 12 1 . . AOE 28 | . 10 4 . . 7 7 Classes Destroyed 11 | . 6 1 2 2 . . Worker 5 | . 2 . 3 . . . Builder 4 | . 1 . 3 . . . Tunneler 2 | . . . . 1 . 1 Hauler 5 | . 1 . 4 . . . Recycler 1 | . . . 1 . . . Watcher 1 | . 1 . . . . . Swarmer 14 | . 3 4 . . . 7 Grunt 25 | . 15 2 8 . . . Sentry 4 | . . . 4 . . . Zionite 1 | . . 1 . . . . Assembled 8 | . . . . 1 7 . Best Kill Streak 7 | . 4 3 6 1 7 4 Combat Bots Only 7 | . 3 3 3 1 7 4 Max Kills in Single Turn 3 | . 2 2 2 1 3 2 Gunslinging 1 | . . 1 1 . . . Exploded 3 | . 2 2 . . 3 2 Melee 1 | . . . . . 1 . Uniques/NPCs Destroyed 1 | . . . . . 1 . 8R-AWN (-9/Exiles) Combat | -11 -10 -10 -9 -9 -9 -8 -------- Run | Scr Mat Min Mat Min Exi Min Damage Taken 3575 | . 404 154 804 151 1535 527 Core 459 | . 52 . 99 27 209 72 Absorbed by Shields . | . . . . . . . Core Remaining (%) 89 | 100 . 79 . . . . Volleys Fired 144 | . 54 10 49 7 11 13 Largest 2 | . 2 2 2 2 1 2 Hottest 90 | . 68 68 90 46 36 60 Shots Fired 247 | . 94 17 96 9 11 20 Gun 218 | . 84 14 96 9 . 15 Cannon . | . . . . . . . Launcher 29 | . 10 3 . . 11 5 Special . | . . . . . . . Kinetic 123 | . 44 7 48 9 . 15 Thermal 26 | . 26 . . . . . Explosive 29 | . 10 3 . . 11 5 Electromagnetic 69 | . 14 7 48 . . . Robot Hit Streak 24 | . 9 4 24 14 15 3 Robot Miss Streak 6 | . 6 4 5 . 1 3 Penetration Max 1 | . . . . . . 1 Secondary Targets 6 | . 2 1 3 . . . Max Gunslinging Chain 1 | . 1 1 1 . . . Shots Hit Robots 199 | . 62 9 66 7 44 11 Core Hits 117 | . 37 10 31 3 27 9 Critical Hits 3 | . . . . . . 3 Critical Kills 1 | . . . . . . 1 Critical Parts Destroyed . | . . . . . . . Melee Attacks 71 | . . . . 13 58 . Impact . | . . . . . . . Slashing 71 | . . . . 13 58 . Piercing . | . . . . . . . Sneak Attacks 1 | . . . . . 1 . Combat Hostiles . | . . . . . . . Follow-up Attacks 6 | . . . . . 6 . Damage Inflicted 5172 | . 1381 559 982 129 1547 574 Guns 2075 | . 709 148 982 68 . 168 Cannons . | . . . . . . . Explosions 2032 | . 671 411 . . 544 406 Melee 1060 | . . . . 61 999 . Ramming 5 | . 1 . . . 4 . Kinetic 1152 | . 298 73 545 68 . 168 Thermal 357 | . 260 97 . . . . Explosive 1890 | . 626 314 . . 544 406 Electromagnetic 708 | . 196 75 437 . . . Impact . | . . . . . . . Slashing 1060 | . . . . 61 999 . Piercing . | . . . . . . . Highest Corruption . | . . . . . . . Average Corruption . | . . . . . . . Corruption Purged . | . . . . . . . Overload Shots . | . . . . . . . Overflow Damage 57 | . . 19 . . 16 22 Projectiles . | . . . . . . . Explosions 57 | . . 19 . . 16 22 Melee . | . . . . . . . Knockbacks . | . . . . . . . Impact . | . . . . . . . Kinetic . | . . . . . . . Secondary . | . . . . . . . Self-Inflicted Damage 169 | . 73 35 . . 46 15 Shots 7 | . 4 1 . . 1 1 Rammed 2 | . . . . . 2 . Targets Rammed 3 | . 1 . . . 2 . Kicked 1 | . 1 . . . . . Crushed . | . . . . . . . Highest Temperature 499 | . 138 63 . . . 499 Average Temperature 76 | . 33 29 . . . 290 Received Heat Transfer 1258 | . 165 36 297 . . 760 Effects 3 | . . . . . . 3 Shutdowns 1 | . . . . . . 1 Energy Bleed 1 | . . . . . . 1 Damage (minor) 1 | . . . . . . 1 Siege Activations . | . . . . . . . Robots Corrupted . | . . . . . . . Combat Hostiles . | . . . . . . . Parts Fried 2 | . . . 2 . . . Impact Corruptions . | . . . . . . . Robots Melted . | . . . . . . . Combat Hostiles . | . . . . . . . Parts Melted 1 | . 1 . . . . . Heat Transferred 675 | . 525 150 . . . . Parts Sabotaged . | . . . . . . . Parts Stolen . | . . . . . . . Parts Stripped . | . . . . . . . Power Chain Reactions 3 | . 1 2 . . . . Missiles Intercepted . | . . . . . . . Alert | -11 -10 -10 -9 -9 -9 -8 ------- Run | Scr Mat Min Mat Min Exi Min Peak Influence 340 | . 340 230 239 113 . 224 Initial 106 | . . 106 11 93 . . Average 125 | . 179 97 104 99 . 161 Maximum Alert Level 1 | . 1 1 1 . . 1 Low Security (%) 80 | . 61 94 84 100 . 51 Level 1 19 | . 38 5 15 . . 48 Level 2 . | . . . . . . . Level 3 . | . . . . . . . Level 4 . | . . . . . . . Level 5 . | . . . . . . . High Security . | . . . . . . . Max Security . | . . . . . . . Squads Dispatched 7 | . 5 . 2 . . . Investigation 3 | . 3 . . . . . Extermination . | . . . . . . . Reinforcement 4 | . 2 . 2 . . . Assault . | . . . . . . . Garrison . | . . . . . . . Intercept . | . . . . . . . Construction Impeded . | . . . . . . . Haulers Reinforced . | . . . . . . . Stealth | -11 -10 -10 -9 -9 -9 -8 --------- Run | Scr Mat Min Mat Min Exi Min Distress Signals 4 | . 1 . 3 . . . Communications Jammed . | . . . . . . . Distress Signals . | . . . . . . . Times Spotted 72 | . 30 7 21 1 7 6 Peak Tracking Total 9 | . 4 3 4 1 9 5 Tactical Retreats 1 | . 1 . . . . . Traps | -11 -10 -10 -9 -9 -9 -8 ------- Run | Scr Mat Min Mat Min Exi Min Traps Triggered 3 | . 2 . 1 . . . Indirectly . | . . . . . . . Trap Hack Attempts . | . . . . . . . Triggered . | . . . . . . . Disarmed . | . . . . . . . Reprogrammed . | . . . . . . . Reused . | . . . . . . . Traps Extracted . | . . . . . . . Installed . | . . . . . . . Triggered . | . . . . . . . Machines | -11 -10 -10 -9 -9 -9 -8 ---------- Run | Scr Mat Min Mat Min Exi Min Machines Disabled 12 | . 1 5 2 . 3 1 Max in Single Turn 2 | . 1 2 1 . 1 1 Machines Sabotaged . | . . . . . . . Garrisons Compromised . | . . . . . . . Overloaded Fab Kills . | . . . . . . . Fab Network Shutdowns . | . . . . . . . Hacking | -11 -10 -10 -9 -9 -9 -8 --------- Run | Scr Mat Min Mat Min Exi Min Machines Accessed 9 | . 6 . 2 . 1 . Terminals 7 | . 5 . 2 . . . Fabricators . | . . . . . . . Repair Stations . | . . . . . . . Recycling Units 1 | . 1 . . . . . Scanalyzers . | . . . . . . . Garrison Access . | . . . . . . . Total Hacks 19 | . 16 . 2 . 1 . Successful 9 | . 6 . 2 . 1 . Failed 10 | . 10 . . . . . Catastrophic 3 | . 3 . . . . . Database Lockouts . | . . . . . . . Manual 15 | . 14 . . . 1 . Terminals 17 | . 15 . 2 . . . Fabricators . | . . . . . . . Repair Stations . | . . . . . . . Recycling Units 1 | . 1 . . . . . Scanalyzers . | . . . . . . . Garrison Access . | . . . . . . . Terminal Hacks 4 | . 1 . 2 . 1 . Branch Access Points 2 | . 1 . 1 . . . Hauler Manifests 1 | . . . 1 . . . EX-Prototype ID Bank 1 | . . . . . 1 . Fabricator Hacks . | . . . . . . . Repair Station Hacks . | . . . . . . . Recycling Unit Hacks . | . . . . . . . Scanalyzer . | . . . . . . . Garrison Access Hacks . | . . . . . . . Unauthorized Hacks 5 | . 5 . . . . . Terminals 4 | . 4 . . . . . Track 1 | . 1 . . . . . Botnet 3 | . 3 . . . . . Fabricators . | . . . . . . . Repair Stations . | . . . . . . . Recycling Units 1 | . 1 . . . . . Tunnel 1 | . 1 . . . . . Scanalyzers . | . . . . . . . Garrison Access . | . . . . . . . Data Cores Recovered . | . . . . . . . Used . | . . . . . . . Hacking Detections 5 | . 5 . . . . . Full Trace Events . | . . . . . . . Feedback Events . | . . . . . . . Feedback Blocked . | . . . . . . . Robot Schematics Acquired . | . . . . . . . Robots Built . | . . . . . . . Matter . | . . . . . . . Time . | . . . . . . . Total Robot Build Rating . | . . . . . . . Part Schematics Acquired . | . . . . . . . Parts Built . | . . . . . . . Matter . | . . . . . . . Time . | . . . . . . . Total Part Build Rating . | . . . . . . . Parts Repaired . | . . . . . . . Time . | . . . . . . . Parts Recycled . | . . . . . . . Recycled Matter . | . . . . . . . Retrieved Matter . | . . . . . . . Retrieved Components . | . . . . . . . Parts Scanalyzed . | . . . . . . . Part Schematics Acquired . | . . . . . . . Parts Damaged . | . . . . . . . Bothacking | -11 -10 -10 -9 -9 -9 -8 ------------ Run | Scr Mat Min Mat Min Exi Min Used RIF Installer . | . . . . . . . Robots Hacked . | . . . . . . . Non-combat . | . . . . . . . Combat . | . . . . . . . Robot Hacks Applied . | . . . . . . . Relay Couplers Released . | . . . . . . . Robots Rewired . | . . . . . . . Allies Hacked . | . . . . . . . Hacks Repelled . | . . . . . . . Allies | -11 -10 -10 -9 -9 -9 -8 -------- Run | Scr Mat Min Mat Min Exi Min Total Allies 2 | . . 2 . . . . Largest Group 2 | . . 2 1 . . . Highest-Rated Group 41 | . . 41 31 . . . Highest-Rated Ally 31 | . . 31 31 . . . Total Orders . | . . . . . . . Ally Attacks 23 | . . 6 17 . . . Total Damage 315 | . . 63 252 . . . Kills 5 | . . 2 3 . . . Allies Corrupted . | . . . . . . . Allies Melted . | . . . . . . . Intel | -11 -10 -10 -9 -9 -9 -8 ------- Run | Scr Mat Min Mat Min Exi Min Robot Analysis Total . | . . . . . . . Derelict Logs Recovered 2 | . . 2 . . . . Drone Launches . | . . . . . . . Drone Recoveries . | . . . . . . . Exploration | -11 -10 -10 -9 -9 -9 -8 ------------- Run | Scr Mat Min Mat Min Exi Min Turns Passed 4138 | . 949 904 995 301 885 104 Spaces Moved 1943 | 1 468 481 451 117 387 38 Core 2 | . . . . . 2 . Treads 685 | . . . 308 117 260 . Legs 1256 | 1 468 481 143 . 125 38 Wheels . | . . . . . . . Hover . | . . . . . . . Flight . | . . . . . . . Fastest Speed 120 | 120 120 180 180 180 150 150 Average Speed 174 | 120 163 180 180 180 173 150 Slowest Speed 750 | 120 180 180 200 180 750 150 Overloaded Moves . | . . . . . . . Propulsion Burnouts . | . . . . . . . Robots Hopped . | . . . . . . . Cave-ins Triggered . | . . . . . . . Exploration Rate (%) 44 | 2 80 99 50 20 45 13 Regions Visited 6 Branch Regions 4 Pre-discovered Areas 1 | . 1 . . . . . Known Exits Taken 2 | . 1 . 1 . . . Unknown Exits Taken 4 | 1 . 1 . 1 1 . Scrap Searched 2 | . . 1 . . . 1 Spaces Dug 5 | . 5 . . . . . Terrain Destroyed 203 | . 49 39 . . 56 59 Melee . | . . . . . . . Projectile 3 | . . . . . . 3 AOE 200 | . 49 39 . . 56 56 Terrain Rammed . | . . . . . . . Walls Destroyed . | . . . . . . . Machines Disabled . | . . . . . . . Actions | -11 -10 -10 -9 -9 -9 -8 --------- Run | Scr Mat Min Mat Min Exi Min Total 2325 | . 566 504 542 171 480 62 Wait 34 | . 2 . 1 31 . . Move 1937 | . 467 480 450 116 386 38 Hop . | . . . . . . . Pick Up 45 | . 18 2 16 . 8 1 Fast Attach 6 | . . 1 5 . . . Attach 17 | . 3 . 4 . 8 2 Detach 1 | . . . . . 1 . Swap 40 | . 10 6 5 4 7 8 Drop 33 | . 11 5 12 . 5 . Fire 144 | . 54 10 49 7 11 13 Melee 65 | . . . . 13 52 . Ram . | . . . . . . . Kick 1 | . 1 . . . . . Crush 2 | . . . . . 2 . Escape Stasis . | . . . . . . . Rewire . | . . . . . . . Trap . | . . . . . . . Miscellaneous . | . . . . . . . Route ------- -11/Scrapyard -10/Materials (discovered 4 exits: *Mat x3 / *Min) -10/Mines (discovered 2 exits: *Mat x2) -9/Materials (discovered 2 exits: [*Mat] / *Min) -9/Mines -9/Exiles -8/Mines History --------- Turn | Location | Event 1 | -11/Scrapyard | Discovered new exit (range 0) 1 | -11/Scrapyard | Entered Materials 130 | -10/Materials | Discovered new exit (range 15) 343 | -10/Materials | Build established: Mutant 623 | -10/Materials | Identified exit to Mines 660 | -10/Materials | Discovered new exit (range 4) 885 | -10/Materials | Discovered new exit (range 15) 950 | -10/Materials | Entered Mines 1080 | -10/Mines | Received a Rocket Launcher from a helpful Derelict 1358 | -10/Mines | Discovered new exit (range 7) 1490 | -10/Mines | Learned Materials garrison access intel 1687 | -10/Mines | Discovered new exit (range 8) 1854 | -10/Mines | Entered Materials 1854 | -9/Materials | Accompanied by 1 ally 1854 | -9/Materials | Evolved 2 slots: Utility x2 1859 | -9/Materials | Led the pair of lost Derelicts to an unsafe place 2552 | -9/Materials | Identified exit to Mines 2568 | -9/Materials | Discovered new exit (range 16) 2849 | -9/Materials | Entered Mines 2905 | -9/Mines | Deemed a non-threat by the Exiles lab entrance 2907 | -9/Mines | Discovered new exit (range 5) 2986 | -9/Mines | Excavation squad dispatched 2986 | -9/Mines | A large section of the Mines collapsed 3150 | -9/Mines | Entered Exiles 3329 | -9/Exiles | Met 8R-AWN 3363 | -9/Exiles | Met EX-HEX 3412 | -9/Exiles | Met EX-BIN 3433 | -9/Exiles | Aligned with FarCom system 3435 | -9/Exiles | Given EX-Vault access code 3477 | -9/Exiles | Opened EX-Vault 3488 | -9/Exiles | Found Cloak of Protection 3528 | -9/Exiles | Warned to stay clear of 0b10 Research branches 3619 | -9/Exiles | Attacked by the Exiles 3656 | -9/Exiles | Core integrity fell below 50% 3673 | -9/Exiles | Destroyed 7 combat bots 3746 | -9/Exiles | Core integrity fell below 20% 3797 | -9/Exiles | Lost 9 parts (2p3n4u) 3817 | -9/Exiles | Destroyed 8R-AWN 3839 | -9/Exiles | Found Prototype Device 3840 | -9/Exiles | Identified AS-neutralizer No. 17b 4015 | -9/Exiles | Discovered new exit (range 14) 4035 | -9/Exiles | Entered Mines 4107 | -8/Mines | AD-0RF came to Exiles' defense 4107 | -8/Mines | Found 8R-AWN's Boregun 4109 | -8/Mines | Found 8R-AWN's Boregun 4139 | -8/Mines | Destroyed by AD-0RF with AD-0RF's Magmablaster Last Messages --------------- 04110_ HV Slug penetrates AD-0RF. 04110_ HV Slug penetrates Wall. 04113_ HV Slug penetrates AD-0RF. 04113_ AD-0RF suffers critical hit. 04113_ HV Slug penetrates Wall. 04116_ HV Slug penetrates AD-0RF. 04116_ HV Slug penetrates Wall. 04116_ HV Slug penetrates AD-0RF. 04116_ HV Slug penetrates Wall. 04117_ Target Analyzer destroyed. 04119_ HV Slug penetrates Wall. 04122_ HV Slug penetrates AD-0RF. 04122_ HV Slug penetrates Wall. 04123_ 8R-AWN's Boregun destroyed. 04126_ HV Slug penetrates Wall. 04127_ Overheating: 8R-AWN's Boregun damaged (-29). 04129_ HV Slug penetrates AD-0RF. 04131_ 8R-AWN's Boregun destroyed. 04132_ Power failure, Hvy. Ion Engine shutdown. 04132_ Overheating: Energy bleed (-30). Map ----- +----------------------------------------------------+ | ?????????????????????????????????????????? | | ?????????????????????????????????????????? | | ?????????????????????????????????????????? | | ???????????????????????????????###???????? | | ??????????????????????????????## #####??? | | ??????????????????????????????# "" #??? | | ??????????????????????????????# #??? | | ??????????????????????????????# ##?? | | ??????????????????????????????# * #?? | | ??????????????????????????????# [ #?? | | ??????????????????????????????# #??? | | ??????????????????????????????# ##??? | | ??????????????????????????????## ##???? | | ???????????????????????????????### ##????? | | ?????????????????????????????????# ##????? | | ????????????????????????????????## ##???? | | ??????????????????????####??????# ##??? | | ?????????????????????## ###???# ##?? | | ?????????????????????# #???# ] |!#?? | | ??????????????????????# #???## ##? | | ??????????????????????# ####### ] !]#? | | ???????????????????????# #### #? | | ???????????????????????# * # ### #? | | ????????? #?????????????## [ ! #? | | ?????????#" ???????????# # * ##? | | ???????? !????????##@ # # ######?? | | ???????????" =%= ?????## ## ###??????? | | ??????????????# #### #???????? | | ??????????????# ## #??????? | | ??????????????# i #### #??????? | | ??????????????## ## ###??## #??????? | | ???????????????###??####?????## ##??????? | | ???????????????????????????????###???????? | | ?????????????????????????????????????????? | | | | | | | | | | | | | | | | | | | | | | | | | | | | | | | | | +----------------------------------------------------+ Best States ------------- Heat Dissipation 56 Energy Generation 14 Energy Capacity 280 Matter Stores 300 Matter Capacity 300 Sight Range 16 Terrain Scan Density 10 Cloak Strength 5 Armor Coverage 450 Evasion (%) 40 Target Analysis 5 Recoil Reduction 2 Item Schematics ----------------- None Robot Schematics ------------------ None Fabricated ------------ Nothing Alien Tech Used ----------------- None Achievements -------------- None Challenges ------------ None Game ------ Seed MediumNullConverter Manual? 0 Play Time 00:24:17 Cumulative 137.3 hours Start 2020.12.14 @ 13:18:58 End 2020.12.14 @ 13:41:13 Sessions 1 Manual Loads 0 Difficulty Rogue Special Mode None Game No. 142 Rogue 135 Adventurer 0 Explorer 7 Win Type - Total 2 Types 0/0/2/0/0/0/0/0/0 Lore% 58 Gallery% 85 Achievement% 64 Wizard Run 0 Options --------- ASCII 0 Keyboard 0 Movement Mouse Keybinds 0 Fullscreen 1 Font 18/X11 Map View 76x50 Tactical HUD 1 Map Filters NONE Filters NONE Steam 1 RUN: a7458aee-f1df-4bb3-a5f5-126b55756360